bitfinex/quotes_BTCUSD_20240911
["timestamp","ask_amount","ask_price","bid_price","bid_amount"]
[1726081821803,0.000819,57555.0,57554.0,1.80577785]
[1726081822051,0.000819,57555.0,57554.0,1.79177785]
[1726081822267,0.000819,57555.0,57554.0,1.85177785]
[1726081822486,0.000819,57555.0,57554.0,1.86577785]
[1726081822973,0.000819,57555.0,57554.0,1.85177785]
[1726081823213,0.000819,57555.0,57554.0,1.87977785]
[1726081823435,0.000819,57555.0,57554.0,2.05571803]
[1726081823688,0.000819,57555.0,57554.0,2.06471803]
[1726081823919,0.000819,57555.0,57554.0,2.07871803]
[1726081824434,0.000819,57555.0,57554.0,2.35642416]
[1726081824680,0.000819,57555.0,57554.0,2.32842416]
[1726081824913,0.000819,57555.0,57554.0,2.34242416]
[1726081825223,0.000819,57555.0,57554.0,2.35642416]
[1726081825384,0.000819,57555.0,57554.0,2.34242416]
[1726081825601,0.000819,57555.0,57554.0,2.33342416]
[1726081826546,0.000819,57555.0,57554.0,2.31942416]
[1726081826784,0.000819,57555.0,57554.0,2.15748398]
[1726081827023,0.000819,57555.0,57554.0,2.15548398]
[1726081827245,0.000819,57555.0,57554.0,2.15748398]
[1726081827757,0.000819,57555.0,57554.0,1.63878498]
[1726081828014,0.000819,57555.0,57554.0,1.64078498]
[1726081828213,0.000819,57555.0,57554.0,1.80948498]
[1726081829167,0.000819,57555.0,57554.0,2.15698398]
[1726081830575,0.000819,57555.0,57554.0,2.14298398]
[1726081831035,0.000819,57555.0,57554.0,1.63878498]
[1726081831515,0.000819,57555.0,57554.0,1.62478498]
[1726081831737,0.000819,57555.0,57554.0,1.60878498]
[1726081831960,0.000819,57555.0,57554.0,1.64087418]
[1726081832213,0.000819,57555.0,57554.0,1.67087418]
[1726081832442,0.000819,57555.0,57554.0,1.67287418]
[1726081832673,0.000819,57555.0,57554.0,2.02037318]
[1726081833385,0.000819,57555.0,57554.0,1.67287418]
[1726081833820,0.000819,57555.0,57554.0,2.02037318]
[1726081834036,0.000819,57555.0,57554.0,2.16837318]
[1726081834703,0.000819,57555.0,57554.0,2.35331336]
[1726081835550,0.000819,57555.0,57554.0,2.36506619]
[1726081836846,0.000819,57555.0,57554.0,2.36731336]
[1726081837748,0.000819,57555.0,57554.0,2.33931336]
[1726081837968,0.000819,57555.0,57554.0,2.14037318]
[1726081838243,0.000819,57555.0,57554.0,2.16837318]
[1726081838899,0.000819,57555.0,57554.0,2.04337318]
[1726081840067,0.000819,57555.0,57554.0,2.05737318]
[1726081840285,0.000819,57555.0,57554.0,2.08737318]
[1726081840510,0.000819,57555.0,57554.0,2.10337318]
[1726081840730,0.000819,57555.0,57554.0,2.08937318]
[1726081840946,0.000819,57555.0,57554.0,2.10337318]
[1726081841168,0.000819,57555.0,57554.0,2.08937318]
[1726081841598,0.000819,57555.0,57554.0,2.10337318]
[1726081842693,0.000819,57555.0,57554.0,2.07337318]
[1726081842917,0.000819,57555.0,57554.0,2.10337318]
[1726081843848,0.000819,57555.0,57554.0,2.10237318]
[1726081844074,0.000819,57555.0,57554.0,2.10137318]
[1726081844299,0.000819,57555.0,57554.0,2.02566582]
[1726081845469,0.000819,57555.0,57554.0,2.02766582]
[1726081847587,0.000819,57555.0,57554.0,2.01366582]
[1726081848053,0.000819,57555.0,57554.0,2.02766582]
[1726081848460,0.000819,57555.0,57554.0,2.01366582]
[1726081849457,0.000819,57555.0,57554.0,1.99966582]
[1726081849692,0.000819,57555.0,57554.0,2.01366582]
[1726081850877,0.000819,57555.0,57554.0,2.02766582]
[1726081852485,0.000819,57555.0,57554.0,2.574105]
[1726081852701,0.000819,57555.0,57554.0,2.288006]
[1726081853189,0.000819,57555.0,57554.0,2.274006]
[1726081853438,0.000819,57555.0,57554.0,2.288006]
[1726081853690,0.000819,57555.0,57554.0,2.621505]
[1726081853926,0.00082,57560.0,57559.0,0.611203]
[1726081854152,0.00082,57560.0,57559.0,1.01214195]
[1726081854393,0.00082,57560.0,57559.0,2.06044363]
[1726081854914,0.00082,57560.0,57559.0,2.06244363]
[1726081855132,0.00082,57560.0,57559.0,2.40991263]
[1726081855364,0.00082,57560.0,57559.0,2.23861318]
[1726081857246,0.00082,57560.0,57559.0,2.26661318]
[1726081857755,0.13982,57560.0,57559.0,0.03389468]
[1726081858004,0.51989345,57560.0,57559.0,0.03389468]
[1726081858268,1.33771405,57560.0,57559.0,0.03389468]
[1726081858502,1.33771405,57560.0,57559.0,0.028]
[1726081858766,1.33771405,57560.0,57559.0,0.014]
[1726081859249,0.1442,57554.0,57549.0,0.001638]
[1726081859482,0.0645,57551.0,57549.0,0.001638]
[1726081859712,0.0645,57551.0,57550.0,0.00589052]
[1726081859941,0.0645,57551.0,57549.0,0.001638]
[1726081860396,0.0645,57551.0,57550.0,0.017541]
[1726081860623,0.0645,57551.0,57550.0,0.02343152]
[1726081860862,0.02724388,57553.0,57550.0,0.54471552]
[1726081861097,0.00082,57560.0,57550.0,0.54471552]
[1726081861098,0.0645,57556.0,57551.0,0.173756]
[1726081861348,0.0645,57556.0,57550.0,0.17965052]
[1726081861585,0.0645,57556.0,57550.0,0.17676]
[1726081861806,0.0645,57556.0,57552.0,0.173755]
[1726081862071,0.347511,57552.0,57551.0,0.00307397]
[1726081862305,0.347511,57552.0,57550.0,0.003]
[1726081862306,0.659975,57551.0,57550.0,0.003]
[1726081862559,1.18496877,57546.0,57545.0,0.001638]
[1726081862795,0.0752,57545.0,57519.0,0.39974365]
[1726081863054,0.173824,57530.0,57523.0,0.69374114]
[1726081863303,0.173824,57530.0,57520.0,0.06418719]
[1726081863304,0.173827,57529.0,57522.0,0.173845]
[1726081863534,0.0619,57528.0,57522.0,0.173845]
[1726081863765,0.0619,57528.0,57523.0,0.09334462]
[1726081863990,0.0619,57528.0,57523.0,0.29718762]
[1726081864220,0.235729,57528.0,57523.0,0.12334462]
[1726081864448,0.0619,57528.0,57523.0,0.09334462]
[1726081864682,0.0619,57528.0,57524.0,0.04410346]
[1726081864913,0.23573,57528.0,57522.0,0.014]
[1726081865416,0.173832,57527.0,57522.0,0.014]
[1726081865883,0.0619,57528.0,57522.0,0.025]
[1726081866102,0.173832,57527.0,57522.0,0.025]
[1726081866325,0.173832,57527.0,57522.0,0.071656]
[1726081866796,0.173832,57527.0,57523.0,0.014]
[1726081867023,0.173835,57526.0,57523.0,0.014]
[1726081867247,0.409558,57528.0,57521.0,0.203847]
[1726081867474,0.173835,57526.0,57521.0,0.1229278]
[1726081867708,0.173835,57526.0,57522.0,0.028]
[1726081867927,0.347667,57527.0,57522.0,0.028]
[1726081868159,0.0619,57528.0,57522.0,0.014]
[1726081868160,0.52153,57523.0,57522.0,0.014]
[1726081868388,0.947917,57523.0,57522.0,0.014]
[1726081868856,0.60023,57523.0,57522.0,0.014]
[1726081869315,0.60023,57523.0,57522.0,0.01917672]
[1726081869538,0.60023,57523.0,57522.0,0.00517672]
[1726081869539,0.173843,57523.0,57522.0,0.00517672]
[1726081869781,0.52153,57523.0,57522.0,0.00517672]
[1726081870012,0.869217,57523.0,57522.0,0.014]
[1726081870524,0.869217,57523.0,57522.0,0.028]
[1726081870525,1.359304,57523.0,57522.0,0.028]
[1726081870753,1.38656106,57523.0,57522.0,0.028]
[1726081870993,1.38656106,57523.0,57522.0,0.014]
[1726081871203,1.38656106,57523.0,57522.0,0.028]
[1726081871425,1.38656106,57523.0,57522.0,0.014]
[1726081872110,1.359304,57523.0,57522.0,0.014]
[1726081872773,1.359304,57523.0,57514.0,0.001638]
[1726081872774,0.173867,57515.0,57514.0,0.001638]
[1726081873220,0.521602,57515.0,57514.0,0.001638]
[1726081873906,0.521602,57515.0,57514.0,0.00655589]
[1726081874136,0.521602,57515.0,57514.0,0.03263359]
[1726081874328,0.521602,57515.0,57514.0,0.00491789]
[1726081874583,0.521602,57515.0,57514.0,0.01391789]
[1726081874808,0.869337,57515.0,57514.0,0.02291789]
[1726081875022,1.280472,57515.0,57514.0,0.02291789]
[1726081875248,1.280472,57515.0,57514.0,0.018]
[1726081875464,1.703407,57515.0,57514.0,0.018]
[1726081876362,1.703407,57515.0,57514.0,0.009]
[1726081876627,1.703407,57515.0,57513.0,0.001638]
[1726081876628,1.217093,57514.0,57513.0,0.001638]
[1726081878234,1.220093,57514.0,57513.0,0.002638]
[1726081878674,1.217093,57514.0,57513.0,0.001638]
[1726081879594,0.89661535,57514.0,57513.0,0.001638]
[1726081879773,0.89661535,57514.0,57513.0,0.002638]
[1726081879979,0.89961535,57514.0,57513.0,0.002638]
[1726081880194,0.20413335,57514.0,57513.0,0.001638]
[1726081880422,0.20113335,57514.0,57513.0,0.001638]
[1726081880648,0.20513335,57514.0,57513.0,0.02019]
[1726081880876,0.20513335,57514.0,57513.0,0.02496743]
[1726081881109,0.20113335,57514.0,57513.0,0.02396743]
[1726081881334,0.20313335,57514.0,57513.0,0.02396743]
[1726081881801,0.20113335,57514.0,57513.0,0.02396743]
[1726081882042,0.20113335,57514.0,57513.0,0.02596743]
[1726081882271,0.17387,57514.0,57513.0,0.02596743]
[1726081882492,0.0642,57517.0,57513.0,0.02596743]
[1726081882716,0.173861,57517.0,57513.0,0.02596743]
[1726081882938,0.173861,57517.0,57513.0,0.19984043]
[1726081883185,0.347717,57518.0,57513.0,0.00841543]
[1726081883398,0.17387,57514.0,57513.0,0.00641543]
[1726081883621,0.521611,57514.0,57513.0,0.012638]
[1726081884089,0.521611,57514.0,57513.0,0.001638]
[1726081884293,0.521611,57514.0,57513.0,0.003638]
[1726081884577,0.521611,57514.0,57513.0,0.002638]
[1726081884782,0.521611,57514.0,57513.0,0.001638]
[1726081884990,0.521611,57514.0,57513.0,0.007638]
[1726081885210,0.521611,57514.0,57513.0,0.012638]
[1726081887156,0.521611,57514.0,57513.0,0.01740609]
[1726081887372,0.17387,57514.0,57513.0,0.01740609]
[1726081888439,0.869352,57514.0,57513.0,0.01740609]
[1726081888649,0.521611,57514.0,57513.0,0.012638]
[1726081889076,0.521611,57514.0,57513.0,0.01740651]
[1726081889521,0.173866,57516.0,57513.0,0.01740651]
[1726081889780,0.347733,57516.0,57513.0,0.01740651]
[1726081889986,0.02726076,57517.0,57513.0,0.01740651]
[1726081889987,0.17387,57514.0,57513.0,0.01740651]
[1726081890410,0.17387,57514.0,57513.0,0.01240651]
[1726081890656,0.174689,57514.0,57513.0,0.01240651]
[1726081890869,0.174689,57514.0,57513.0,0.00940651]
[1726081891072,0.174689,57514.0,57513.0,0.01240651]
[1726081891281,0.174689,57514.0,57513.0,0.00940651]
[1726081891488,0.174689,57514.0,57513.0,0.01140651]
[1726081891699,0.174689,57514.0,57513.0,0.01740651]
[1726081893478,0.52243,57514.0,57513.0,0.01740651]
[1726081893924,1.21396977,57514.0,57513.0,0.01740651]
[1726081894151,1.21396977,57514.0,57513.0,0.012638]
[1726081896536,1.56171077,57514.0,57513.0,0.012638]
[1726081898156,1.60109712,57514.0,57513.0,0.012638]
[1726081900610,2.10856122,57514.0,57513.0,0.012638]
[1726081900870,2.10856122,57514.0,57503.0,0.0038036]
[1726081900871,1.217303,57504.0,57503.0,0.0038036]
[1726081901094,1.48430177,57504.0,57503.0,0.0038036]
[1726081902845,1.48430177,57504.0,57503.0,0.0054416]
[1726081903055,1.48430177,57504.0,57503.0,0.0064416]
[1726081903501,1.48430177,57504.0,57503.0,0.0074416]
[1726081904171,1.51156832,57504.0,57503.0,0.0074416]
[1726081905042,1.52386005,57504.0,57503.0,0.0074416]
[1726081905742,1.87166105,57504.0,57503.0,0.0074416]
[1726081905968,2.10668415,57504.0,57503.0,0.0074416]
[1726081906407,2.45448515,57504.0,57503.0,0.0074416]
[1726081906630,2.52794994,57504.0,57503.0,0.0064416]
[1726081906849,2.49345924,57504.0,57503.0,0.0064416]
[1726081907073,2.49845924,57504.0,57503.0,0.0064416]
[1726081907332,2.42276205,57504.0,57503.0,0.0054416]
[1726081907559,2.47359164,57504.0,57503.0,0.0054416]
[1726081907815,2.7281765,57504.0,57503.0,0.0064416]
[1726081908222,2.61424691,57504.0,57503.0,0.0054416]
[1726081908438,2.62724691,57504.0,57503.0,0.0064416]
[1726081909107,2.74151252,57504.0,57503.0,0.0054416]
[1726081909324,2.75451252,57504.0,57503.0,0.0064416]
[1726081909552,2.62724691,57504.0,57503.0,0.0064416]
[1726081909810,2.62824691,57504.0,57503.0,0.0064416]
[1726081910031,2.64124691,57504.0,57503.0,0.0074416]
[1726081910253,2.75450258,57504.0,57503.0,0.0064416]
[1726081910491,2.76850258,57504.0,57503.0,0.0074416]
[1726081910703,2.76850258,57504.0,57503.0,0.0064416]
[1726081910704,2.75450258,57504.0,57503.0,0.0064416]
[1726081910931,1.217538,57493.0,57492.0,0.0004082]
[1726081911630,1.24481119,57493.0,57492.0,0.0004082]
[1726081912099,1.217538,57493.0,57492.0,0.0004082]
[1726081912800,1.665406,57493.0,57492.0,0.0004082]
[1726081913039,1.669406,57493.0,57492.0,0.0004082]
[1726081913749,1.74740031,57493.0,57492.0,0.0004082]
[1726081914422,0.11879431,57493.0,57492.0,0.0004082]
[1726081914680,0.007,57493.0,57492.0,0.5865192]
[1726081914897,0.176934,57493.0,57492.0,0.19912392]
[1726081915116,0.524802,57493.0,57492.0,0.00524915]
[1726081915368,0.527802,57493.0,57492.0,0.00688715]
[1726081915598,0.527802,57493.0,57492.0,0.0020462]
[1726081915817,0.527802,57493.0,57492.0,0.00688715]
[1726081915818,0.524802,57493.0,57492.0,0.00688715]
[1726081916061,0.522802,57493.0,57492.0,0.00788715]
[1726081916562,0.521802,57493.0,57492.0,0.0020462]
[1726081916800,0.522802,57493.0,57492.0,0.0020462]
[1726081917285,0.001,57493.0,57492.0,0.0020462]
[1726081917512,0.001,57493.0,57492.0,1.0427623]
[1726081918239,0.005,57493.0,57492.0,0.67712598]
[1726081918475,0.005,57493.0,57492.0,0.67812598]
[1726081918476,0.006,57493.0,57492.0,0.67812598]
[1726081918708,0.006,57493.0,57492.0,1.02599998]
[1726081918944,0.005,57493.0,57492.0,1.02499998]
[1726081919176,0.005,57493.0,57492.0,0.67712598]
[1726081919413,0.006,57493.0,57492.0,1.02599998]
[1726081919650,0.001,57493.0,57492.0,1.16345318]
[1726081919873,0.173915,57500.0,57496.0,0.173925]
[1726081920134,0.37507823,57503.0,57497.0,0.1453]
[1726081920135,0.02726923,57503.0,57497.0,0.1453]
[1726081920363,0.02726923,57503.0,57501.0,0.173908]
[1726081920824,0.02726923,57503.0,57499.0,0.347829]
[1726081921040,0.02726923,57503.0,57502.0,0.00486878]
[1726081921275,0.02726923,57503.0,57500.0,0.173912]
[1726081921502,0.02726923,57503.0,57497.0,0.31922]
[1726081921503,0.17391,57501.0,57497.0,0.31922]
[1726081921753,0.173919,57498.0,57497.0,0.1453]
[1726081922001,0.173918,57499.0,57497.0,0.0798]
[1726081922231,0.173918,57499.0,57494.0,0.0627]
[1726081922232,0.00434789,57500.0,57494.0,0.0627]
[1726081922475,0.521802,57493.0,57492.0,0.0020462]
[1726081922761,0.173934,57493.0,57492.0,0.0020462]
[1726081923964,0.001,57499.0,57492.0,0.01980912]
[1726081924197,0.001,57499.0,57493.0,0.1405]
[1726081924465,0.001,57499.0,57498.0,0.662257]
[1726081924655,0.05094962,57510.0,57498.0,0.662257]
[1726081924656,0.173892,57507.0,57498.0,0.1405]
[1726081924900,0.173893,57507.0,57501.0,0.347815]
[1726081925154,0.065419,57513.0,57509.0,0.173884]
[1726081925155,0.174693,57513.0,57509.0,0.173884]
[1726081925377,0.174693,57513.0,57508.0,0.0749]
[1726081925378,0.02726622,57510.0,57508.0,0.0749]
[1726081925600,0.02726622,57510.0,57509.0,0.0770467]
[1726081925821,0.02726622,57510.0,57508.0,0.0749]
[1726081926281,0.173906,57502.0,57501.0,0.001]
[1726081926502,0.869532,57502.0,57501.0,0.001]
[1726081926736,1.41934377,57502.0,57501.0,0.001]
[1726081926977,1.44661355,57502.0,57501.0,0.001]
[1726081927202,1.68631355,57502.0,57501.0,0.001]
[1726081927648,1.40921478,57502.0,57501.0,0.001]
[1726081927871,1.40921478,57502.0,57496.0,0.0646]
[1726081927872,0.02726978,57502.0,57496.0,0.0646]
[1726081928095,0.02726978,57502.0,57497.0,0.17872911]
[1726081928349,0.02726978,57502.0,57499.0,0.173915]
[1726081928810,0.02726978,57502.0,57501.0,0.002]
[1726081928811,0.02826978,57502.0,57501.0,0.002]
[1726081929332,0.20217578,57502.0,57501.0,0.00680911]
[1726081929555,0.20217578,57502.0,57500.0,0.0759]
[1726081929776,0.20317578,57502.0,57501.0,0.00480911]
[1726081929993,0.20317578,57502.0,57500.0,0.0759]
[1726081930492,0.02926978,57502.0,57501.0,0.00480911]
[1726081930711,0.20317578,57502.0,57501.0,0.00480911]
[1726081930934,0.20217578,57502.0,57500.0,0.0759]
[1726081931150,0.20217578,57502.0,57501.0,0.003]
[1726081931371,0.20217578,57502.0,57501.0,0.00778572]
[1726081931595,0.02926978,57502.0,57501.0,0.03076057]
[1726081931807,0.02926978,57502.0,57501.0,0.00678572]
[1726081931808,0.20217578,57502.0,57501.0,0.00678572]
[1726081932031,0.02726978,57502.0,57501.0,0.00478572]
[1726081932271,0.55098878,57502.0,57501.0,0.00478572]
[1726081932508,0.02926978,57502.0,57501.0,0.00478359]
[1726081932750,0.54899078,57502.0,57501.0,0.00478359]
[1726081932957,0.89780378,57502.0,57501.0,0.002]
[1726081933178,0.89780378,57502.0,57501.0,0.00678359]
[1726081933179,1.24561678,57502.0,57501.0,0.00678359]
[1726081933404,1.284747,57502.0,57501.0,0.002]
[1726081934086,1.285747,57502.0,57501.0,0.005]
[1726081934302,1.284747,57502.0,57501.0,0.003]
[1726081934520,1.284747,57502.0,57492.0,0.0020462]
[1726081934521,0.521802,57493.0,57492.0,0.0020462]
[1726081934971,0.521802,57493.0,57492.0,0.02087883]
[1726081935727,1.217538,57493.0,57492.0,0.00683041]
[1726081935978,1.56273677,57493.0,57492.0,0.00983041]
[1726081936210,1.48693677,57493.0,57492.0,0.0050462]
[1726081936475,1.48793677,57493.0,57492.0,0.0070462]
[1726081937147,1.48693677,57493.0,57492.0,0.0040462]
[1726081937383,1.48793677,57493.0,57492.0,0.0070462]
[1726081937826,1.284938,57493.0,57492.0,0.0050462]
[1726081938078,1.284938,57493.0,57492.0,0.0020462]
[1726081938079,1.283938,57493.0,57492.0,0.0020462]
[1726081938288,1.219538,57493.0,57492.0,0.0070462]
[1726081938514,1.218538,57493.0,57492.0,0.0050462]
[1726081938737,0.86967,57493.0,57492.0,0.0020462]
[1726081938956,0.86967,57493.0,57492.0,0.0040462]
[1726081939194,0.86967,57493.0,57492.0,0.0020462]
[1726081939195,0.87067,57493.0,57492.0,0.0020462]
[1726081939433,0.001,57493.0,57492.0,0.0020462]
[1726081939656,0.522802,57493.0,57492.0,0.0020462]
[1726081940353,0.521802,57493.0,57492.0,0.0020462]
[1726081940602,0.521802,57493.0,57492.0,0.00690929]
[1726081940819,0.521802,57493.0,57492.0,0.0030462]
[1726081941067,0.173931,57494.0,57492.0,0.00790929]
[1726081941310,0.173934,57493.0,57492.0,0.0030462]
[1726081941544,0.522802,57493.0,57492.0,0.0050462]
[1726081942046,0.522802,57493.0,57492.0,0.0040462]
[1726081942277,0.522802,57493.0,57492.0,0.0070462]
[1726081943214,0.001,57493.0,57492.0,0.0070462]
[1726081943445,0.174934,57493.0,57492.0,0.0070462]
[1726081943714,0.522802,57493.0,57492.0,0.0040462]
[1726081943972,0.522802,57493.0,57492.0,0.0070462]
[1726081943973,0.523802,57493.0,57492.0,0.0070462]
[1726081944208,1.219538,57493.0,57492.0,0.0070462]
[1726081944432,1.31160986,57493.0,57492.0,0.0070462]
[1726081944664,0.55107386,57493.0,57492.0,0.0070462]
[1726081944888,0.20320586,57493.0,57492.0,0.0070462]
[1726081945333,0.55107386,57493.0,57492.0,0.0070462]
[1726081946302,0.20320586,57493.0,57492.0,0.0070462]
[1726081946525,0.89894186,57493.0,57492.0,0.0070462]
[1726081946771,1.24680986,57493.0,57492.0,0.0070462]
[1726081948435,1.29792716,57493.0,57492.0,0.0070462]
[1726081948663,1.35812716,57493.0,57492.0,0.0070462]
[1726081949370,0.95005916,57493.0,57492.0,0.0070462]
[1726081949854,0.95005916,57493.0,57492.0,0.0706462]
[1726081949855,0.89894186,57493.0,57492.0,0.0706462]
[1726081950096,0.89894186,57493.0,57492.0,0.07945462]
[1726081950313,0.89894186,57493.0,57492.0,0.0070462]
[1726081950788,0.89894186,57493.0,57492.0,0.01190245]
[1726081951086,0.89894186,57493.0,57492.0,0.0070462]
[1726081951087,1.35832716,57493.0,57492.0,0.0070462]
[1726081952670,1.35837898,57493.0,57492.0,0.0070462]
[1726081953127,1.29797898,57493.0,57492.0,0.0070462]
[1726081953349,1.24680986,57493.0,57492.0,0.0070462]
[1726081953600,1.29797898,57493.0,57492.0,0.0070462]
[1726081954050,1.24680986,57493.0,57492.0,0.0070462]
[1726081954275,1.29797898,57493.0,57492.0,0.0070462]
[1726081954974,0.95011098,57493.0,57492.0,0.0070462]
[1726081955224,0.02927186,57493.0,57492.0,0.0853462]
[1726081955440,0.002,57493.0,57492.0,0.13500342]
[1726081955656,0.002,57493.0,57492.0,0.09020388]
[1726081956168,0.002,57493.0,57492.0,0.95988888]
[1726081956407,0.002,57493.0,57492.0,0.26414088]
[1726081956629,0.002,57493.0,57492.0,0.61201488]
[1726081957311,0.002,57493.0,57492.0,1.02368888]
[1726081957531,0.002,57493.0,57492.0,1.54188437]
[1726081957761,0.002,57493.0,57492.0,1.74388314]
[1726081957987,0.002,57493.0,57492.0,1.16401037]
[1726081958217,0.002,57493.0,57492.0,1.02368888]
[1726081958463,0.001,57493.0,57492.0,1.02068888]
[1726081958945,0.173907,57502.0,57497.0,0.173919]
[1726081959392,0.000819,57503.0,57498.0,0.08482281]
[1726081959612,0.000819,57503.0,57500.0,0.173911]
[1726081959835,0.173907,57502.0,57498.0,0.25873981]
[1726081960064,0.173907,57502.0,57498.0,0.253917]
[1726081960297,0.173907,57502.0,57499.0,0.00482281]
[1726081960527,0.002,57502.0,57499.0,0.00482281]
[1726081960757,0.521739,57500.0,57499.0,0.00482281]
[1726081960986,0.173919,57498.0,57493.0,0.319031]
[1726081961201,0.173919,57498.0,57494.0,0.17393]
[1726081961540,0.173919,57498.0,57494.0,0.17871366]
[1726081962001,0.347826,57500.0,57494.0,0.17871366]
[1726081962002,0.173922,57497.0,57494.0,0.17871366]
[1726081962223,0.347834,57499.0,57494.0,0.17871366]
[1726081962224,0.521752,57499.0,57494.0,0.17871366]
[1726081962443,0.521752,57499.0,57498.0,0.01]
[1726081962677,0.521752,57499.0,57495.0,0.07454265]
[1726081963133,0.17492,57498.0,57496.0,0.00478366]
[1726081963349,0.17392,57498.0,57496.0,0.00478366]
[1726081963566,0.17392,57498.0,57494.0,0.17393]
[1726081963783,0.521758,57498.0,57497.0,0.00478366]
[1726081964002,0.17393,57495.0,57493.0,0.1451]
[1726081964221,0.52178,57496.0,57495.0,0.01]
[1726081964443,0.173925,57496.0,57495.0,0.01]
[1726081964664,0.001,57498.0,57495.0,0.01]
[1726081964883,0.17392,57498.0,57495.0,0.01478366]
[1726081965319,0.173922,57497.0,57495.0,0.01478366]
[1726081965536,0.174917,57499.0,57495.0,0.08432185]
[1726081965756,0.173919,57498.0,57495.0,0.24824785]
[1726081965978,0.000819,57503.0,57495.0,0.24824785]
[1726081965979,0.000819,57503.0,57500.0,0.03]
[1726081966208,0.000819,57503.0,57502.0,1.24713077]
[1726081966691,0.000819,57503.0,57502.0,0.1456]
[1726081966875,0.000819,57503.0,57502.0,0.15038249]
[1726081967135,0.174722,57503.0,57497.0,0.0643]
[1726081967355,0.001819,57503.0,57502.0,0.00478249]
[1726081967589,0.02808517,57503.0,57502.0,0.00478249]
[1726081968093,0.02808517,57503.0,57498.0,0.347833]
[1726081968328,0.02908517,57503.0,57502.0,0.18868849]
[1726081968558,0.02908517,57503.0,57502.0,0.183906]
[1726081968789,0.02908517,57503.0,57502.0,0.237079]
[1726081969025,0.02908517,57503.0,57502.0,0.24185928]
[1726081969888,0.02808517,57503.0,57502.0,0.23185928]
[1726081970100,0.02808517,57503.0,57502.0,0.24385928]
[1726081970316,0.02808517,57503.0,57502.0,0.58767228]
[1726081970764,0.02808517,57503.0,57502.0,0.24285928]
[1726081970973,0.02808517,57503.0,57502.0,0.53749928]
[1726081971186,0.02808517,57503.0,57502.0,0.20168628]
[1726081971408,0.02808517,57503.0,57502.0,0.54949928]
[1726081971624,0.000819,57503.0,57502.0,0.54949928]
[1726081973633,0.000819,57503.0,57502.0,0.89731228]
[1726081973853,0.000819,57503.0,57502.0,1.02182591]
[1726081974070,0.000819,57503.0,57502.0,0.67401291]
[1726081974288,0.000819,57503.0,57502.0,1.02182591]
[1726081976228,0.000819,57503.0,57502.0,1.00982591]
[1726081976451,0.000819,57503.0,57502.0,0.67501291]
[1726081976689,0.583429,57503.0,57502.0,0.01778028]
[1726081976925,1.461643,57503.0,57502.0,0.03341828]
[1726081977161,2.00606902,57503.0,57502.0,0.028638]
[1726081977383,2.10794293,57503.0,57502.0,0.028638]
[1726081977592,1.6581802,57503.0,57502.0,0.015638]
[1726081977809,1.76013227,57503.0,57502.0,0.015638]
[1726081978032,1.6581802,57503.0,57502.0,0.015638]
[1726081978255,1.53809909,57503.0,57502.0,0.015638]
[1726081979152,1.461643,57503.0,57502.0,0.015638]
[1726081979370,1.461643,57503.0,57502.0,0.001638]
[1726081979580,1.51761114,57503.0,57502.0,0.002638]
[1726081980005,1.466643,57503.0,57502.0,0.002638]
[1726081980217,1.461643,57503.0,57502.0,0.001638]
[1726081980425,1.51461114,57503.0,57502.0,0.001638]
[1726081980636,1.51460929,57503.0,57502.0,0.001638]
[1726081980843,1.47545284,57503.0,57502.0,0.001638]
[1726081981323,1.52641902,57503.0,57502.0,0.001638]
[1726081981739,1.52641902,57503.0,57502.0,0.002638]
[1726081982412,0.33949802,57503.0,57502.0,0.002638]
[1726081982659,0.524529,57503.0,57502.0,0.002638]
[1726081982907,0.872336,57503.0,57502.0,0.002638]
[1726081983345,0.870336,57503.0,57502.0,0.002638]
[1726081983581,1.220143,57503.0,57502.0,0.002638]
[1726081984083,1.220143,57503.0,57502.0,0.001638]
[1726081984084,1.218143,57503.0,57502.0,0.001638]
[1726081984549,1.218143,57503.0,57502.0,0.015638]
[1726081985209,1.24541173,57503.0,57502.0,0.015638]
[1726081985653,0.54979773,57503.0,57502.0,0.015638]
[1726081985868,0.54979773,57503.0,57502.0,0.001638]
[1726081986078,0.54979773,57503.0,57502.0,0.00940316]
[1726081986303,0.54979773,57503.0,57502.0,0.004638]
[1726081986509,0.54979773,57503.0,57502.0,0.00940316]
[1726081986715,0.89760473,57503.0,57502.0,0.001638]
[1726081986923,0.54979773,57503.0,57502.0,0.01243093]
[1726081987143,0.54979773,57503.0,57502.0,0.007638]
[1726081987833,0.89760473,57503.0,57502.0,0.007638]
[1726081989661,0.89760473,57503.0,57502.0,0.013638]
[1726081990339,1.42411173,57503.0,57502.0,0.013638]
[1726081993699,1.34541173,57503.0,57502.0,0.013638]
[1726081994172,1.34541173,57503.0,57502.0,0.00929124]
[1726081994429,0.54979773,57503.0,57502.0,0.00929124]
[1726081994867,0.20199073,57503.0,57502.0,0.00929124]
[1726081995338,0.522529,57503.0,57502.0,0.00929124]
[1726081995565,0.000819,57503.0,57502.0,0.01412051]
[1726081995779,0.000819,57503.0,57502.0,0.06497566]
[1726081996502,0.000819,57503.0,57502.0,1.54961943]
[1726081996712,0.000819,57503.0,57502.0,1.62581943]
[1726081997361,0.000819,57503.0,57502.0,1.61981943]
[1726081997579,0.000819,57503.0,57502.0,2.05763243]
[1726081998043,0.000819,57503.0,57502.0,2.60109437]
[1726081998259,0.000819,57514.0,57507.0,1.33065577]
[1726081998471,0.000819,57514.0,57507.0,1.98744453]
[1726081998681,0.000819,57514.0,57507.0,2.33998991]
[1726081998919,0.000819,57514.0,57507.0,1.79326673]
[1726081999607,0.000819,57514.0,57507.0,1.80726673]
[1726081999831,0.000819,57514.0,57507.0,1.79326673]
[1726082000321,0.000819,57514.0,57507.0,2.35398991]
[1726082000593,0.02725726,57518.0,57517.0,1.104707]
[1726082000855,0.07648171,57543.0,57517.0,1.104707]
[1726082000856,0.51989914,57527.0,57526.0,1.04457]
[1726082001115,0.51989914,57544.0,57540.0,0.428382]
[1726082001331,0.51989914,57544.0,57543.0,0.173783]
[1726082001563,0.0046226,57546.0,57543.0,0.173781]
[1726082001835,0.0046226,57546.0,57545.0,0.173777]
[1726082002079,0.0046226,57546.0,57545.0,0.21182444]
[1726082002323,0.0046226,57546.0,57545.0,0.03804744]